fUST/lending_fUST_20260402
["ID","MTS","AMOUNT","RATE_DAILY","PERIOD"]
[419283163,1775112642311,-500.0,0.00020989,2]
[419283164,1775112642321,-500.0,0.00020989,2]
[419283165,1775112642332,-5000.0,0.0002099,2]
[419283166,1775112642341,-5000.0,0.0002099,2]
[419283167,1775112642351,-5000.0,0.0002099,2]
[419283168,1775112642360,-3514.18819,0.0002099,2]
[419283169,1775112642369,-200.0,0.0002099,2]
[419283170,1775112642379,-151.0,0.0002099,2]
[419283171,1775112642390,-151.0,0.0002099,2]
[419283172,1775112642400,-185.774193,0.0002099,2]
[419283173,1775112642410,-3820.18931854,0.0002099,2]
[419283174,1775112642424,-3583.73877053,0.0002099,2]
[419283175,1775112642435,-16401.06805442,0.0002099,2]
[419283194,1775112643886,-478.55877297,0.0002099,2]
[419283213,1775112646359,-959.82,0.0002098,10]
[419283214,1775112646368,-12539.03854768,0.0002099,2]
[419283215,1775112646570,-1929.10950984,0.0002099,2]
[419283216,1775112646626,-69774.33475064,0.0002099,2]
[419283217,1775112862559,542.0,0.00032877,120]
[419285450,1775113001560,-253.35553,0.00036522,60]
[419285452,1775113001601,-571.52791396,0.00036522,30]
[419285454,1775113001642,-283.12684958,0.00036522,30]
[419285456,1775113001683,-320.93138393,0.00036522,30]
[419285458,1775113001722,-159.35549647,0.00036522,36]
[419285460,1775113001764,-1185.91851749,0.00036522,30]
[419285462,1775113001807,-186.37233523,0.00036522,31]
[419285464,1775113001851,-562.72837085,0.00036522,60]
[419285466,1775113001891,-475.559551,0.00036522,30]
[419285467,1775113001932,-507.07232599,0.00036522,30]
[419285468,1775113001973,-200.01476029,0.00036522,30]
[419285469,1775113002013,-350.94867286,0.00036522,30]
[419285470,1775113002053,-1469.50812622,0.00036522,60]
[419285471,1775113002094,-1269.74310805,0.00036522,60]
[419285472,1775113002131,-1241.55732734,0.00036522,60]
[419285473,1775113002173,-158.38144629,0.00036522,30]
[419285474,1775113002214,-42938.42966103,0.00036522,30]
[419285475,1775113002249,-409.80768443,0.00036522,60]
[419285476,1775113002291,-500.0,0.00036522,30]
[419285477,1775113002335,-500.0,0.00036522,30]
[419285479,1775113002375,-500.0,0.00036522,30]
[419285481,1775113002414,-500.0,0.00036522,30]
[419285483,1775113002455,-228.32011965,0.00036522,30]
[419285485,1775113002495,-500.0,0.00036522,60]
[419285487,1775113002536,-500.0,0.00036522,60]
[419285489,1775113002577,-500.0,0.00036522,60]
[419285491,1775113002618,-500.0,0.00036522,60]
[419285493,1775113002658,-500.0,0.00036522,60]
[419285495,1775113002699,-562.99999702,0.00036522,60]
[419285497,1775113002741,-500.0,0.00036522,30]
[419285499,1775113002782,-500.0,0.00036522,30]
[419285501,1775113002822,-500.0,0.00036522,30]
[419285503,1775113002860,-500.0,0.00036522,30]
[419285505,1775113002901,-500.0,0.00036522,30]
[419285507,1775113002942,-500.0,0.00036522,30]
[419285509,1775113002982,-500.0,0.00036522,30]
[419285511,1775113003037,-600.0,0.00036522,30]
[419285513,1775113003084,-232.53637727,0.00036522,30]
[419285515,1775113003134,-622.49,0.00036522,90]
[419285517,1775113003181,-622.49,0.00036522,90]
[419285519,1775113003229,-622.49,0.00036522,90]
[419285524,1775113003355,-622.49,0.00036522,90]
[419285526,1775113003427,-622.49,0.00036522,90]
[419285528,1775113003475,-622.49,0.00036522,90]
[419285530,1775113003520,-622.49,0.00036522,90]
[419285532,1775113003566,-622.49,0.00036522,90]
[419285534,1775113003611,-622.49,0.00036522,90]
[419285536,1775113003656,-622.49,0.00036522,90]
[419285538,1775113003702,-622.49,0.00036522,90]
[419285540,1775113003747,-622.49,0.00036522,90]
[419285541,1775113003793,-622.49,0.00036522,90]
[419285543,1775113003841,-622.49,0.00036522,90]
[419285545,1775113003888,-622.49,0.00036522,90]
[419285547,1775113003935,-622.49,0.00036522,90]
[419285550,1775113003984,-622.49,0.00036522,90]
[419285551,1775113004030,-622.49,0.00036522,90]
[419285553,1775113004079,-622.49,0.00036522,90]
[419285555,1775113004127,-622.49,0.00036522,90]
[419285557,1775113004173,-622.49,0.00036522,90]
[419285559,1775113004221,-622.49,0.00036522,90]
[419285561,1775113004267,-622.49,0.00036522,90]
[419285563,1775113004312,-622.53294925,0.00036522,90]
[419286984,1775113085086,151.0,0.00036522,30]
[419286985,1775113085138,199.61979605,0.00036522,30]
[419286986,1775113085190,151.0,0.00036522,30]
[419286987,1775113085349,151.0,0.00036522,30]
[419286988,1775113085400,151.0,0.00036522,30]
[419286989,1775113085605,334.49286801,0.00036522,30]
[419286990,1775113085802,151.0,0.00036522,30]
[419286991,1775113085855,250.0,0.00036522,30]
[419286992,1775113085939,156.587,0.00036522,30]
[419286993,1775113086035,414.0,0.00036522,30]
[419286994,1775113086099,151.0,0.00036522,30]
[419286995,1775113086154,151.0,0.00036522,30]
[419286996,1775113086328,250.0,0.00036522,30]
[419286997,1775113086381,162.380719,0.00036522,30]
[419286998,1775113086442,429.318,0.00036522,30]
[419286999,1775113086761,151.0,0.00036522,30]
[419287000,1775113086911,250.0,0.00036522,30]
[419287001,1775113086965,168.3888056,0.00036522,30]
[419287002,1775113087035,445.202766,0.00036522,30]
[419287003,1775113087345,151.0,0.00036522,30]
[419287004,1775113087589,174.61919141,0.00036522,30]
[419287005,1775113087652,461.67526834,0.00036522,30]
[419287006,1775113087889,151.0,0.00036522,30]
[419287007,1775113087955,7191.50191482,0.00036522,120]
[419287008,1775113088102,151.0,0.00036522,30]
[419287009,1775113088230,174.61919141,0.00036522,30]
[419287010,1775113088292,478.75725327,0.00036522,30]
[419287011,1775113088504,156.587,0.00036522,30]
[419287012,1775113088581,151.0,0.00036522,30]
[419287013,1775113088770,500.0,0.00036522,30]
[419287014,1775113088852,478.75725327,0.00036522,30]
[419287015,1775113089025,500.0,0.00036522,30]
[419287016,1775113089109,162.380719,0.00036522,30]
[419287017,1775113089377,518.5,0.00036522,30]
[419287018,1775113089602,500.0,0.00036522,30]
[419287019,1775113089655,500.0,0.00036522,30]
[419287020,1775113089709,168.3888056,0.00036522,30]
[419287021,1775113089975,537.6845,0.00036522,30]
[419287022,1775113090198,500.0,0.00036522,30]
[419287023,1775113090251,518.5,0.00036522,30]
[419287024,1775113090304,174.61919141,0.00036522,30]
[419287025,1775113090579,557.5788265,0.00036522,30]
[419287026,1775113090884,537.6845,0.00036522,30]
[419287027,1775113090985,500.0,0.00036522,30]
[419287028,1775113091037,174.61919141,0.00036522,30]
[419287029,1775113091183,578.20924308,0.00036522,30]
[419287030,1775113091492,557.5788265,0.00036522,30]
[419287031,1775113091545,500.0,0.00036522,30]
[419287032,1775113091868,151.27467997,0.00036522,30]
[419287033,1775113091947,578.20924308,0.00036522,30]
[419287034,1775113092175,500.0,0.00036522,30]
[419287035,1775113092525,578.20924308,0.00036522,30]
[419287044,1775113093116,578.20924308,0.00036522,30]
[419287078,1775113094827,648.96024108,0.00036522,30]
[419287083,1775113095005,1500.0,0.00036522,30]
[419287090,1775113095619,1555.5,0.00036522,30]
[419287568,1775113120637,28776.999999,0.00036522,120]
[419288824,1775113282506,-250.29754891,0.00013699,2]
[419288826,1775113393866,1287.51141693,0.00036522,30]
[419288827,1775113634950,500.0,0.00036522,30]
[419288828,1775113635191,500.0,0.00036522,30]
[419288829,1775113635436,500.0,0.00036522,30]
[419288830,1775113635687,500.0,0.00036522,30]
[419288831,1775113635911,500.0,0.00036522,30]
[419288832,1775113636152,500.0,0.00036522,30]
[419288833,1775113636516,300.05824901,0.00036522,30]
[419288834,1775113642221,159.0907268,0.00036522,30]
[419288840,1775113827205,60201.62958941,0.00036522,30]
[419288895,1775113838714,-500.0,0.00013699,2]
[419288896,1775113838725,-1000.0,0.00013699,2]
[419288897,1775113838735,-437.681,0.00020374,2]
[419288898,1775113838749,-186.202,0.00020374,2]
[419288899,1775113838760,-184.0,0.00020587,2]
[419288900,1775113838773,-300.0,0.00020688,2]
[419288901,1775113838786,-3466.6690417,0.00020688,2]
[419288902,1775113838797,-500.0,0.00020689,2]
[419288903,1775113838811,-257.48559497,0.00020689,2]
[419288904,1775113838826,-527.22519849,0.00020689,2]
[419288916,1775113841150,-439.59518581,0.0002068,10]
[419288967,1775113846979,-115.85481419,0.0002068,10]
[419288968,1775113846993,-45.07726824,0.00020689,2]
[419288969,1775113847005,-500.0,0.00020689,2]
[419288970,1775113847016,-500.0,0.00020689,2]
[419288971,1775113847027,-500.0,0.00020689,2]
[419288972,1775113847036,-176.65086736,0.00020689,2]
[419288973,1775113847048,-2501.02753124,0.0002069,2]
[419288974,1775113847060,-1274.01354243,0.0002069,2]
[419288975,1775113847075,-20044.76119127,0.0002069,2]
[419288982,1775114339655,710.13,0.00036521,120]
[419288984,1775114500085,154.08105524,0.00036521,30]
[419288988,1775114724937,500.26,0.00036521,120]
[419288990,1775114885868,1000.0,0.00036521,30]
[419288991,1775114902324,1000.0,0.00036521,30]
[419288992,1775114916420,1000.0,0.00036521,30]
[419288993,1775114928761,3000.0,0.00036521,30]
[419288994,1775114941833,3000.0,0.00036521,30]
[419288995,1775114951062,3000.0,0.00036521,30]
[419288996,1775114961004,3000.0,0.00036521,30]
[419288997,1775114974282,3000.0,0.00036521,30]
[419288998,1775114987831,3000.0,0.00036521,30]
[419288999,1775114995123,3000.0,0.00036521,30]
[419289000,1775115001540,3000.0,0.00036521,30]
[419289001,1775115018438,3000.0,0.00036521,30]
[419289002,1775115027713,3000.0,0.00036521,30]
[419289038,1775115036620,3000.0,0.00036521,30]
[419289204,1775115043972,-209.40581814,0.00013599,2]
[419289205,1775115043982,-1000.0,0.00013699,2]
[419289206,1775115043991,-597.79166733,0.00014175,2]
[419289207,1775115044001,-317.086311,0.00017826,2]
[419289208,1775115044011,-2148.70447477,0.00018657,6]
[419289209,1775115044021,-154.52528347,0.00020079,2]
[419289222,1775115047075,-41.74607803,0.00020079,2]
[419289223,1775115047085,-440.221,0.00020178,2]
[419289224,1775115047095,-186.20213924,0.00020178,2]
[419289225,1775115047105,-282.85907684,0.00020225,2]
[419289226,1775115047114,-322.94424887,0.00020545,2]
[419289227,1775115047124,-223.97566389,0.00020553,2]
[419289228,1775115047133,-386.5,0.0002058,10]
[419289229,1775115047144,-300.0,0.00020588,2]
[419289231,1775115047155,-400.61172671,0.00020589,2]
[419289232,1775115047165,-125.85770814,0.00020589,2]
[419289233,1775115047177,-454.38220834,0.00020589,2]
[419289234,1775115047186,-500.0,0.00020589,2]
[419289235,1775115047195,-68.15003073,0.00020589,2]
[419289236,1775115049022,3000.0,0.00036521,30]
[419289237,1775115064703,3000.0,0.00036521,30]
[419289238,1775115064831,178.61,0.00032877,120]
[419289239,1775115071915,3000.0,0.00036521,30]
[419289240,1775115080119,3000.0,0.00036521,30]
[419289241,1775115091323,3000.0,0.00036521,30]
[419289242,1775115101138,3000.0,0.00036521,30]
[419289243,1775115110263,3000.0,0.00036521,30]
[419289244,1775115121443,3000.0,0.00036521,30]
[419289245,1775115131689,3000.0,0.00036521,30]
[419289246,1775115140227,3000.0,0.00036521,30]
[419289247,1775115150261,3000.0,0.00036521,30]
[419289248,1775115160265,3000.0,0.00036521,30]
[419289249,1775115169514,3000.0,0.00036521,30]
[419289250,1775115184821,239.15463601,0.00036521,30]
[419289251,1775115185632,3461.29185,0.00036521,30]
[419289252,1775115225040,549.0,0.00036521,30]
[419289253,1775115232060,478.0,0.00036521,30]
[419289254,1775115255865,203.77283991,0.00036521,120]
[419289255,1775115454381,273.55279227,0.00032876,120]
[419289256,1775115500936,4005.68,0.00032877,120]
[419289257,1775115540087,1981.0,0.00036529,30]
[419289258,1775115545549,500.0,0.00036529,30]
[419289259,1775115549876,830.0,0.00036529,30]
[419289260,1775115549944,1809.0,0.00036529,30]
[419289261,1775115552350,876.71,0.00036529,120]
[419289262,1775115552594,876.71,0.00036529,120]
[419289263,1775115552827,876.71,0.00036529,120]
[419289264,1775115553123,876.71,0.00036529,120]
[419289265,1775115553317,876.71,0.00036529,120]
[419289266,1775115553537,876.71,0.00036529,120]
[419289267,1775115553773,876.71,0.00036529,120]
[419289268,1775115554004,876.71,0.00036529,120]
[419289269,1775115554312,876.71,0.00036529,120]
[419289270,1775115554530,876.71,0.00036529,120]
[419289271,1775115554762,876.71,0.00036529,120]
[419289272,1775115555005,876.71,0.00036529,120]
[419289273,1775115555227,876.71,0.00036529,120]
[419289274,1775115555461,876.71,0.00036529,120]
[419289275,1775115555688,876.71,0.00036529,120]
[419289276,1775115555912,876.71,0.00036529,120]
[419289277,1775115556148,876.71,0.00036529,120]
[419289278,1775115556379,876.71,0.00036529,120]
[419289279,1775115556644,876.71,0.00036529,120]
[419289280,1775115556878,876.71,0.00036529,120]
[419289281,1775115557241,876.71,0.00036529,120]
[419289282,1775115557471,876.71,0.00036529,120]
[419289283,1775115557737,876.71,0.00036529,120]
[419289284,1775115557973,876.87,0.00036529,120]
[419289285,1775115558313,570.0,0.00036529,30]
[419289286,1775115558767,655.86248556,0.00036529,30]
[419289287,1775115564372,517.0,0.00036529,30]
[419289288,1775115570210,863.0,0.00036529,30]
[419289289,1775115573168,500.0,0.00036529,120]
[419289290,1775115573404,500.0,0.00036529,120]
[419289291,1775115573693,500.0,0.00036529,120]
[419289292,1775115574399,500.0,0.00036529,120]
[419289293,1775115574551,500.0,0.00036529,120]
[419289294,1775115574805,500.0,0.00036529,120]
[419289295,1775115575035,532.27810222,0.00036529,120]
[419289296,1775115578005,2726.0,0.00036529,30]
[419289297,1775115578284,3067.66231225,0.00036529,30]
[419289298,1775115579134,4606.85695737,0.00036529,30]
[419289299,1775115587307,1453.0,0.00036529,30]
[419289300,1775115587603,965.0,0.00036529,30]
[419289301,1775115588143,816.0,0.00036529,30]
[419289302,1775115590503,1596.0,0.00036529,30]
[419289303,1775115590568,1289.0,0.00036529,30]
[419289304,1775115592676,192.41635278,0.00036529,120]
[419289305,1775115596085,254.84186617,0.00036529,30]
[419289306,1775115596149,976.0,0.00036529,30]
[419289307,1775115596210,1711.09516957,0.00036529,30]
[419289308,1775115596424,478.0,0.00036529,30]
[419289309,1775115596500,227.0,0.00036529,30]
[419289310,1775115596563,2002.0,0.00036529,30]
[419289311,1775115596753,150.24749965,0.00036529,120]
[419289313,1775115602889,2543.61075312,0.00036529,120]
[419289314,1775115604501,151.81171264,0.00036529,120]
[419289315,1775115606605,167.0181657,0.00036529,120]
[419289316,1775115607832,157.04474321,0.00036529,120]
[419289317,1775115608656,500.0,0.00036529,120]
[419289318,1775115608887,500.0,0.00036529,120]
[419289319,1775115609137,500.0,0.00036529,120]
[419289320,1775115609397,500.0,0.00036529,120]
[419289321,1775115609656,500.0,0.00036529,120]
[419289322,1775115609889,500.0,0.00036529,120]
[419289323,1775115610127,500.0,0.00036529,120]
[419289324,1775115610506,500.0,0.00036529,120]
[419289325,1775115610727,500.0,0.00036529,120]
[419289326,1775115611006,500.0,0.00036529,120]
[419289327,1775115611415,500.0,0.00036529,120]
[419289328,1775115611641,500.0,0.00036529,120]
[419289329,1775115611877,238.31,0.00036529,120]
[419289330,1775115623119,174.77054895,0.000328,120]
[419289331,1775115623848,2084.37,0.00036529,120]
[419289332,1775115624087,2084.37,0.00036529,120]
[419289333,1775115624301,2084.37,0.00036529,120]
[419289334,1775115624515,2084.37,0.00036529,120]
[419289335,1775115624768,2084.37,0.00036529,120]
[419289336,1775115625012,2084.37,0.00036529,120]
[419289337,1775115625379,2084.37,0.00036529,120]
[419289338,1775115625630,2084.37,0.00036529,120]
[419289339,1775115625867,2084.37,0.00036529,120]
[419289340,1775115626103,2084.37,0.00036529,120]
[419289341,1775115626321,2084.37,0.00036529,120]
[419289342,1775115626781,2084.37,0.00036529,120]
[419289343,1775115626850,2084.37,0.00036529,120]
[419289344,1775115627047,2084.37,0.00036529,120]
[419289345,1775115627271,2084.37,0.00036529,120]
[419289346,1775115627504,2084.37,0.00036529,120]
[419289347,1775115627738,2084.37,0.00036529,120]
[419289348,1775115627961,2084.37,0.00036529,120]
[419289349,1775115628193,2084.37,0.00036529,120]
[419289350,1775115628435,2084.37,0.00036529,120]
[419289351,1775115628683,2084.37,0.00036529,120]
[419289352,1775115629154,2084.37,0.00036529,120]
[419289353,1775115629220,287.59858,0.00036529,60]
[419289354,1775115629382,2084.37,0.00036529,120]
[419289355,1775115629616,2084.50250674,0.00036529,120]
[419289356,1775115632648,500.0,0.00036529,120]
[419289357,1775115632885,427.12740249,0.00036529,120]
[419289358,1775115635641,592.411577,0.00036529,120]
[419289359,1775115644435,339.75898073,0.00036529,120]
[419289360,1775115644501,500.0,0.00036529,120]
[419289361,1775115644565,236.649866,0.00036529,120]
[419289362,1775115644632,680.21060276,0.00036529,120]
[419289363,1775115644698,333.51472678,0.00036529,120]
[419289364,1775115644765,278.75370199,0.00036529,120]
[419289365,1775115644828,500.0,0.00036529,120]
[419289366,1775115644893,500.0,0.00036529,120]
[419289367,1775115644962,680.21060276,0.00036529,120]
[419289368,1775115645030,339.75898073,0.00036529,120]
[419289369,1775115645094,333.51472678,0.00036529,120]
[419289370,1775115645161,236.649866,0.00036529,120]
[419289371,1775115645224,278.75370199,0.00036529,120]
[419289372,1775115645287,500.0,0.00036529,120]
[419289373,1775115645355,500.0,0.00036529,120]
[419289374,1775115645417,306.07035085,0.00036529,120]
[419289375,1775115645479,680.21060276,0.00036529,120]
[419289376,1775115645543,333.51472678,0.00036529,120]
[419289377,1775115645608,339.75898073,0.00036529,120]
[419289378,1775115645672,236.649866,0.00036529,120]
[419289379,1775115645735,278.75370199,0.00036529,120]
[419289380,1775115645800,500.0,0.00036529,120]
[419289381,1775115645871,339.75898073,0.00036529,120]
[419289382,1775115645938,680.21060276,0.00036529,120]
[419289383,1775115646004,500.0,0.00036529,120]
[419289384,1775115646071,333.51472678,0.00036529,120]
[419289385,1775115646251,500.0,0.00036529,120]
[419289386,1775115646323,680.21060276,0.00036529,120]
[419289387,1775115646388,333.51472678,0.00036529,120]
[419289388,1775115646454,339.75898073,0.00036529,120]
[419289389,1775115646521,500.0,0.00036529,120]
[419289390,1775115646584,680.21060276,0.00036529,120]
[419289391,1775115646651,339.75898073,0.00036529,120]
[419289392,1775115646717,333.51472678,0.00036529,120]
[419289393,1775115646785,500.0,0.00036529,120]
[419289394,1775115646852,680.21060276,0.00036529,120]
[419289395,1775115647008,500.0,0.00036529,120]
[419289396,1775115647074,339.75898073,0.00036529,120]
[419289397,1775115647142,333.51472678,0.00036529,120]
[419289398,1775115647231,562.99195984,0.00036529,120]
[419289399,1775115647295,339.75898073,0.00036529,120]
[419289400,1775115647359,680.21060276,0.00036529,120]
[419289401,1775115647426,680.21060276,0.00036529,120]
[419289402,1775115647488,339.75898073,0.00036529,120]
[419289403,1775115647557,339.75898073,0.00036529,120]
[419289404,1775115647624,680.21060276,0.00036529,120]
[419289405,1775115647687,680.21060276,0.00036529,120]
[419289406,1775115647827,339.75898073,0.00036529,120]
[419289407,1775115647896,680.21060276,0.00036529,120]
[419289408,1775115648084,500.0,0.00036529,120]
[419289409,1775115648162,680.21060276,0.00036529,120]
[419289410,1775115648282,339.75898073,0.00036529,120]
[419289411,1775115648351,500.0,0.00036529,120]
[419289412,1775115648484,680.21060276,0.00036529,120]
[419289413,1775115648576,609.47352107,0.00036529,120]
[419289414,1775115648642,339.75898073,0.00036529,120]
[419289415,1775115648808,680.21060276,0.00036529,120]
[419289416,1775115648915,339.75898073,0.00036529,120]
[419289417,1775115649152,680.21060276,0.00036529,120]
[419289418,1775115649240,339.75898073,0.00036529,120]
[419289419,1775115649480,680.21060276,0.00036529,120]
[419289420,1775115649798,680.21060276,0.00036529,120]
[419289421,1775115649978,221.70742956,0.00036529,120]
[419289422,1775115650094,680.21060276,0.00036529,120]
[419289423,1775115650347,221.70742956,0.00036529,120]
[419289424,1775115650423,680.21060276,0.00036529,120]
[419289425,1775115650580,294.72429374,0.00036529,120]
[419289426,1775115650663,221.70742956,0.00036529,120]
[419289427,1775115650739,680.21060276,0.00036529,120]
[419289428,1775115651013,680.21060276,0.00036529,120]
[419289429,1775115651492,680.21060276,0.00036529,120]
[419289430,1775115651809,680.21060276,0.00036529,120]
[419289431,1775115652404,680.21060276,0.00036529,120]
[419289432,1775115652693,680.21060276,0.00036529,120]
[419289433,1775115653010,680.21060276,0.00036529,120]
[419289434,1775115653325,680.21060276,0.00036529,120]
[419289435,1775115653641,680.21060276,0.00036529,120]
[419289436,1775115653934,680.21060276,0.00036529,120]
[419289437,1775115657991,1500.0,0.00032876,120]
[419289438,1775115664987,197.8834126,0.00036529,120]
[419289439,1775115667937,500.0,0.00036529,120]
[419289440,1775115668154,500.0,0.00036529,120]
[419289441,1775115668413,500.0,0.00036529,120]
[419289442,1775115668658,308.61108222,0.00036529,120]
[419289443,1775115672625,385.09602067,0.00036529,120]
[419289444,1775115672706,469.26360476,0.00036529,120]
[419289445,1775115675723,2250.0,0.00036529,120]
[419289446,1775115683759,500.0,0.00036529,120]
[419289447,1775115684210,304.37013996,0.00036529,120]
[419289448,1775115685122,500.0,0.00021972,120]
[419289449,1775115685373,500.0,0.00021999,120]
[419289450,1775115685604,500.0,0.00021999,120]
[419289451,1775115685827,262.54374354,0.00021999,120]
[419289452,1775115687083,500.0,0.00036529,120]
[419289453,1775115687313,984.29,0.00036529,120]
[419289454,1775115687374,500.0,0.00036529,120]
[419289455,1775115687541,984.29,0.00036529,120]
[419289456,1775115687604,500.0,0.00036529,120]
[419289457,1775115687775,984.29,0.00036529,120]
[419289458,1775115687840,500.0,0.00036529,120]
[419289459,1775115688203,984.29,0.00036529,120]
[419289460,1775115688269,500.0,0.00036529,120]
[419289461,1775115688339,984.29,0.00036529,120]
[419289462,1775115688403,500.0,0.00036529,120]
[419289463,1775115688493,984.29,0.00036529,120]
[419289464,1775115688557,174.21347743,0.00036529,120]
[419289465,1775115688729,984.29,0.00036529,120]
[419289466,1775115688974,984.29,0.00036529,120]
[419289467,1775115689193,984.29,0.00036529,120]
[419289468,1775115689473,984.29,0.00036529,120]
[419289469,1775115689695,984.29,0.00036529,120]
[419289470,1775115689922,984.29,0.00036529,120]
[419289471,1775115690145,984.29,0.00036529,120]
[419289472,1775115690361,984.29,0.00036529,120]
[419289473,1775115690713,984.29,0.00036529,120]
[419289474,1775115690945,984.29,0.00036529,120]
[419289475,1775115691376,984.29,0.00036529,120]
[419289476,1775115691599,984.29,0.00036529,120]
[419289477,1775115691827,984.29,0.00036529,120]
[419289478,1775115692082,984.29,0.00036529,120]
[419289479,1775115692320,984.29,0.00036529,120]
[419289480,1775115692569,984.29,0.00036529,120]
[419289481,1775115692811,984.29,0.00036529,120]
[419289482,1775115693084,984.35013138,0.00036529,120]
[419289483,1775115695832,2134.0,0.00036529,120]
[419289484,1775115703162,154.08105425,0.00036529,30]
[419289485,1775115703227,1798.87,0.00032877,120]
[419289486,1775115705847,201.58019628,0.00036529,120]
[419289487,1775115706827,500.0,0.00036529,120]
[419289488,1775115707045,500.0,0.00036529,120]
[419289489,1775115707295,500.0,0.00036529,120]
[419289490,1775115707541,500.0,0.00036529,120]
[419289491,1775115707779,500.0,0.00036529,120]
[419289492,1775115707893,500.0,0.00036529,120]
[419289493,1775115708003,912.26,0.00036529,120]
[419289494,1775115708063,500.0,0.00036529,120]
[419289495,1775115708124,500.0,0.00036529,120]
[419289496,1775115708235,912.26,0.00036529,120]
[419289497,1775115708293,500.0,0.00036529,120]
[419289498,1775115708349,500.0,0.00036529,120]
[419289499,1775115708558,912.26,0.00036529,120]
[419289500,1775115708619,398.49274642,0.00036529,120]
[419289501,1775115708684,500.0,0.00036529,120]
[419289502,1775115708744,912.26,0.00036529,120]
[419289503,1775115708961,912.26,0.00036529,120]
[419289504,1775115709122,500.0,0.00036529,120]
[419289505,1775115709414,912.26,0.00036529,120]
[419289506,1775115709451,450.23402294,0.00036529,120]
[419289507,1775115709647,912.26,0.00036529,120]
[419289508,1775115709872,912.26,0.00036529,120]
[419289509,1775115710098,912.26,0.00036529,120]
[419289510,1775115710327,912.26,0.00036529,120]
[419289511,1775115710568,912.26,0.00036529,120]
[419289512,1775115710801,912.26,0.00036529,120]
[419289513,1775115711052,912.26,0.00036529,120]
[419289514,1775115711314,912.26,0.00036529,120]
[419289515,1775115711535,912.26,0.00036529,120]
[419289516,1775115711918,912.26,0.00036529,120]
[419289517,1775115712017,912.26,0.00036529,120]
[419289518,1775115712241,912.26,0.00036529,120]
[419289519,1775115712457,912.26,0.00036529,120]
[419289520,1775115712705,912.26,0.00036529,120]
[419289521,1775115712940,912.26,0.00036529,120]
[419289522,1775115713197,912.26,0.00036529,120]
[419289523,1775115713548,912.26,0.00036529,120]
[419289524,1775115713874,912.26014251,0.00036529,120]
[419289525,1775115717811,280.55541852,0.00036529,120]
[419289526,1775115720481,1083.0,0.000326,120]
[419289527,1775115721085,500.0,0.00036529,120]
[419289528,1775115721348,500.0,0.00036529,120]
[419289529,1775115721617,500.0,0.00036529,120]
[419289530,1775115721882,500.0,0.00036529,120]
[419289531,1775115722138,500.0,0.00036529,120]